[Event "Titled Tuesday Blitz May 2 Late 2023"]
[White "Baskakov, Egor"]
[Black "Domingo Nunez, Ruben"]
[WhiteFideId "24197866"]
[BlackFideId "22245570"]
[WhiteElo "2212"]
[BlackElo "2404"]
[Result "1-0"]
[Round "07"]
[TimeControl "180+2"]
[Date "2023.05.02"]
[WhiteClock "0:00:35"]
[BlackClock "0:00:03"]

1. e4 {[%clk 0:03:00]}  e5 {[%clk 0:02:26]} 2. Nc3 {[%clk 0:02:59]}  Nf6 {[%clk 0:02:25]} 3. g3 {[%clk 0:02:59]}  h5 {[%clk 0:02:25]} 4. h3 {[%clk 0:02:59]}  h4 {[%clk 0:02:25]} 5. g4 {[%clk 0:02:56]}  d5 {[%clk 0:02:25]} 6. exd5 {[%clk 0:02:56]}  Nxd5 {[%clk 0:02:18]} 7. Bg2 {[%clk 0:02:56]}  Nf4 {[%clk 0:02:19]} 8. Bf3 {[%clk 0:02:55]}  Nc6 {[%clk 0:02:15]} 9. d3 {[%clk 0:02:52]}  Nd4 {[%clk 0:02:09]} 10. Bxf4 {[%clk 0:02:42]}  exf4 {[%clk 0:02:10]} 11. Be4 {[%clk 0:02:37]}  Bb4 {[%clk 0:02:04]} 12. Nf3 {[%clk 0:02:35]}  O-O {[%clk 0:01:58]} 13. O-O {[%clk 0:02:33]}  c6 {[%clk 0:01:40]} 14. Nxd4 {[%clk 0:02:30]}  Qxd4 {[%clk 0:01:41]} 15. Ne2 {[%clk 0:02:23]}  Qf6 {[%clk 0:01:37]} 16. c3 {[%clk 0:02:19]}  Bd6 {[%clk 0:01:34]} 17. Nd4 {[%clk 0:02:15]}  Be5 {[%clk 0:01:33]} 18. Nf3 {[%clk 0:02:14]}  Bc7 {[%clk 0:01:34]} 19. d4 {[%clk 0:02:13]}  Re8 {[%clk 0:01:33]} 20. Qd3 {[%clk 0:02:12]}  g6 {[%clk 0:01:23]} 21. Rfe1 {[%clk 0:02:03]}  Bd7 {[%clk 0:01:24]} 22. Re2 {[%clk 0:01:55]}  Kg7 {[%clk 0:01:21]} 23. Rae1 {[%clk 0:01:55]}  Rad8 {[%clk 0:01:20]} 24. Qd2 {[%clk 0:01:47]}  Be6 {[%clk 0:01:14]} 25. Bc2 {[%clk 0:01:35]}  Bd7 {[%clk 0:01:09]} 26. Ne5 {[%clk 0:01:28]}  Bc8 {[%clk 0:01:06]} 27. Nf3 {[%clk 0:01:17]}  Bd7 {[%clk 0:01:02]} 28. Kg2 {[%clk 0:01:09]}  Rxe2 {[%clk 0:00:50]} 29. Rxe2 {[%clk 0:01:10]}  Be6 {[%clk 0:00:45]} 30. Bb3 {[%clk 0:01:08]}  Re8 {[%clk 0:00:14]} 31. Qd3 {[%clk 0:01:02]}  Qd8 {[%clk 0:00:11]} 32. Bxe6 {[%clk 0:01:00]}  Rxe6 {[%clk 0:00:12]} 33. Rxe6 {[%clk 0:00:59]}  fxe6 {[%clk 0:00:13]} 34. Qe4 {[%clk 0:00:55]}  Qd5 {[%clk 0:00:12]} 35. Qxd5 {[%clk 0:00:54]}  cxd5 {[%clk 0:00:09]} 36. Nxh4 {[%clk 0:00:55]}  g5 {[%clk 0:00:08]} 37. Nf3 {[%clk 0:00:55]}  Kf6 {[%clk 0:00:09]} 38. h4 {[%clk 0:00:53]}  gxh4 {[%clk 0:00:09]} 39. Nxh4 {[%clk 0:00:54]}  Kg5 {[%clk 0:00:10]} 40. Kh3 {[%clk 0:00:54]}  Kf6 {[%clk 0:00:10]} 41. Nf3 {[%clk 0:00:54]}  b6 {[%clk 0:00:11]} 42. Kh4 {[%clk 0:00:53]}  Kg6 {[%clk 0:00:12]} 43. g5 {[%clk 0:00:52]}  Kf5 {[%clk 0:00:12]} 44. Kh5 {[%clk 0:00:52]}  Bd6 {[%clk 0:00:13]} 45. Nd2 {[%clk 0:00:44]}  Bf8 {[%clk 0:00:12]} 46. f3 {[%clk 0:00:42]}  Bg7 {[%clk 0:00:12]} 47. Nf1 {[%clk 0:00:39]}  Bf8 {[%clk 0:00:06]} 48. Nh2 {[%clk 0:00:38]}  Bg7 {[%clk 0:00:07]} 49. Ng4 {[%clk 0:00:38]}  e5 {[%clk 0:00:03]} 50. Nxe5 {[%clk 0:00:35]} 1-0


[Site "https://www.chess.com"]

[Event "Titled Tuesday Blitz May 2 Late 2023"]
[White "Khripachenko, Alexander"]
[Black "Adan Bermudez, Sergio"]
[WhiteFideId "54184975"]
[BlackFideId "2292726"]
[WhiteElo "2374"]
[BlackElo "2292"]
[Result "1/2-1/2"]
[Round "07"]
[TimeControl "180+2"]
[Date "2023.05.02"]
[WhiteClock "0:00:08"]
[BlackClock "0:00:15"]

1. e4 {[%clk 0:02:58]}  c5 {[%clk 0:03:00]} 2. Nf3 {[%clk 0:02:59]}  Nc6 {[%clk 0:03:00]} 3. Bb5 {[%clk 0:02:59]}  e5 {[%clk 0:03:00]} 4. O-O {[%clk 0:02:56]}  Bd6 {[%clk 0:02:59]} 5. c3 {[%clk 0:02:55]}  a6 {[%clk 0:02:58]} 6. Bc4 {[%clk 0:02:55]}  b5 {[%clk 0:02:53]} 7. Bb3 {[%clk 0:02:53]}  c4 {[%clk 0:02:52]} 8. Bc2 {[%clk 0:02:52]}  Nf6 {[%clk 0:02:52]} 9. b3 {[%clk 0:02:39]}  O-O {[%clk 0:02:44]} 10. Re1 {[%clk 0:02:28]}  Bb7 {[%clk 0:02:26]} 11. a4 {[%clk 0:02:25]}  cxb3 {[%clk 0:02:20]} 12. Bxb3 {[%clk 0:02:25]}  Na5 {[%clk 0:02:21]} 13. Bc2 {[%clk 0:02:25]}  b4 {[%clk 0:02:15]} 14. cxb4 {[%clk 0:02:24]}  Bxb4 {[%clk 0:02:15]} 15. Nxe5 {[%clk 0:02:20]}  Re8 {[%clk 0:02:15]} 16. Bb2 {[%clk 0:02:07]}  d5 {[%clk 0:02:09]} 17. Ng4 {[%clk 0:01:53]}  Nxe4 {[%clk 0:02:04]} 18. Bxe4 {[%clk 0:01:51]}  dxe4 {[%clk 0:01:59]} 19. Ne3 {[%clk 0:01:34]}  Qg5 {[%clk 0:01:43]} 20. Bc3 {[%clk 0:00:45]}  Bxc3 {[%clk 0:01:41]} 21. Nxc3 {[%clk 0:00:46]}  Rad8 {[%clk 0:01:37]} 22. Rb1 {[%clk 0:00:44]}  Ba8 {[%clk 0:01:17]} 23. Rb6 {[%clk 0:00:41]}  f5 {[%clk 0:01:15]} 24. h4 {[%clk 0:00:41]}  Qf4 {[%clk 0:01:07]} 25. Rxa6 {[%clk 0:00:35]}  Qe5 {[%clk 0:00:59]} 26. Qh5 {[%clk 0:00:29]}  Nc6 {[%clk 0:00:43]} 27. Qxf5 {[%clk 0:00:25]}  Rxd2 {[%clk 0:00:31]} 28. Nb5 {[%clk 0:00:19]}  Qxf5 {[%clk 0:00:19]} 29. Nxf5 {[%clk 0:00:20]}  Rf8 {[%clk 0:00:19]} 30. Rxe4 {[%clk 0:00:13]}  Rxf5 {[%clk 0:00:17]} 31. Rxa8+ {[%clk 0:00:13]}  Kf7 {[%clk 0:00:17]} 32. Rc8 {[%clk 0:00:12]}  Rfxf2 {[%clk 0:00:16]} 33. Rc7+ {[%clk 0:00:11]}  Kf8 {[%clk 0:00:15]} 34. Rxc6 {[%clk 0:00:10]}  Rxg2+ {[%clk 0:00:15]} 35. Kf1 {[%clk 0:00:10]}  Rh2 {[%clk 0:00:15]} 36. Rc8+ {[%clk 0:00:05]}  Kf7 {[%clk 0:00:16]} 37. Rf4+ {[%clk 0:00:05]}  Ke6 {[%clk 0:00:15]} 38. Kg1 {[%clk 0:00:06]}  Rhg2+ {[%clk 0:00:14]} 39. Kf1 {[%clk 0:00:07]}  Rh2 {[%clk 0:00:14]} 40. Kg1 {[%clk 0:00:07]}  Rhg2+ {[%clk 0:00:14]} 41. Kf1 {[%clk 0:00:08]}  Rh2 {[%clk 0:00:15]} 1/2-1/2


[Site "https://www.chess.com"]

[Event "Titled Tuesday Blitz May 2 Late 2023"]
[White "Stork, Oliver"]
[Black "Sun, Rick"]
[WhiteFideId "12955728"]
[BlackFideId "30909481"]
[WhiteElo "2239"]
[BlackElo "2169"]
[Result "1/2-1/2"]
[Round "07"]
[TimeControl "180+2"]
[Date "2023.05.02"]
[WhiteClock "0:00:21"]
[BlackClock "0:00:06"]

1. b3 {[%clk 0:03:00]}  d6 {[%clk 0:03:00]} 2. Bb2 {[%clk 0:02:59]}  Nc6 {[%clk 0:03:00]} 3. e3 {[%clk 0:02:51]}  Nf6 {[%clk 0:02:55]} 4. Nf3 {[%clk 0:02:46]}  g6 {[%clk 0:02:55]} 5. c4 {[%clk 0:02:46]}  Bg7 {[%clk 0:02:54]} 6. Be2 {[%clk 0:02:46]}  O-O {[%clk 0:02:52]} 7. O-O {[%clk 0:02:46]}  e5 {[%clk 0:02:52]} 8. d4 {[%clk 0:02:43]}  e4 {[%clk 0:02:51]} 9. Nfd2 {[%clk 0:02:43]}  Re8 {[%clk 0:02:52]} 10. Nc3 {[%clk 0:02:43]}  Bf5 {[%clk 0:02:49]} 11. Re1 {[%clk 0:02:41]}  h5 {[%clk 0:02:48]} 12. Nf1 {[%clk 0:02:40]}  h4 {[%clk 0:02:44]} 13. h3 {[%clk 0:02:37]}  Qd7 {[%clk 0:02:26]} 14. f4 {[%clk 0:02:06]}  exf3 {[%clk 0:01:47]} 15. Bxf3 {[%clk 0:02:05]}  Ne4 {[%clk 0:01:39]} 16. Nxe4 {[%clk 0:01:56]}  Bxe4 {[%clk 0:01:38]} 17. Nd2 {[%clk 0:01:56]}  Bxf3 {[%clk 0:01:06]} 18. Nxf3 {[%clk 0:01:47]}  Re4 {[%clk 0:01:02]} 19. Qd3 {[%clk 0:01:15]}  Rae8 {[%clk 0:01:00]} 20. Nd2 {[%clk 0:01:14]}  R4e7 {[%clk 0:00:35]} 21. Re2 {[%clk 0:01:09]}  d5 {[%clk 0:00:29]} 22. Rae1 {[%clk 0:01:08]}  Nb4 {[%clk 0:00:26]} 23. Qb1 {[%clk 0:01:07]}  c6 {[%clk 0:00:23]} 24. a3 {[%clk 0:01:06]}  Na6 {[%clk 0:00:23]} 25. Nf3 {[%clk 0:01:01]}  Re4 {[%clk 0:00:22]} 26. Nd2 {[%clk 0:00:58]}  R4e7 {[%clk 0:00:22]} 27. Qd3 {[%clk 0:00:58]}  Nc7 {[%clk 0:00:18]} 28. e4 {[%clk 0:00:56]}  Ne6 {[%clk 0:00:15]} 29. cxd5 {[%clk 0:00:32]}  cxd5 {[%clk 0:00:16]} 30. exd5 {[%clk 0:00:30]}  Qxd5 {[%clk 0:00:17]} 31. Qf3 {[%clk 0:00:29]}  Rd7 {[%clk 0:00:08]} 32. Qxd5 {[%clk 0:00:28]}  Rxd5 {[%clk 0:00:09]} 33. Nf3 {[%clk 0:00:29]}  g5 {[%clk 0:00:09]} 34. Ne5 {[%clk 0:00:24]}  Red8 {[%clk 0:00:07]} 35. Nxf7 {[%clk 0:00:23]}  Kxf7 {[%clk 0:00:08]} 36. Rxe6 {[%clk 0:00:24]}  R8d7 {[%clk 0:00:06]} 37. R6e4 {[%clk 0:00:22]}  Bxd4+ {[%clk 0:00:06]} 38. Bxd4 {[%clk 0:00:22]}  Rxd4 {[%clk 0:00:07]} 39. Rf1+ {[%clk 0:00:21]}  Kg7 {[%clk 0:00:06]} 40. Rxd4 {[%clk 0:00:20]}  Rxd4 {[%clk 0:00:07]} 41. Rf3 {[%clk 0:00:21]}  Kg6 {[%clk 0:00:06]} 42. Kf2 {[%clk 0:00:21]} 1/2-1/2


[Site "https://www.chess.com"]

[Event "Titled Tuesday Blitz May 2 Late 2023"]
[White "Pourkashiyan, Atousa"]
[Black "Skvortsov, Andrei"]
[WhiteFideId "12502014"]
[BlackFideId "24108600"]
[WhiteElo "2228"]
[BlackElo "2259"]
[Result "0-1"]
[Round "07"]
[TimeControl "180+2"]
[Date "2023.05.02"]
[WhiteClock "0:00:02"]
[BlackClock "0:00:21"]

1. e4 {[%clk 0:02:51]}  d5 {[%clk 0:02:58]} 2. exd5 {[%clk 0:02:50]}  Qxd5 {[%clk 0:02:59]} 3. Nc3 {[%clk 0:02:50]}  Qe5+ {[%clk 0:02:59]} 4. Be2 {[%clk 0:02:49]}  Bg4 {[%clk 0:03:00]} 5. d4 {[%clk 0:02:47]}  Bxe2 {[%clk 0:03:00]} 6. Ngxe2 {[%clk 0:02:47]}  Qa5 {[%clk 0:02:59]} 7. O-O {[%clk 0:02:46]}  Nf6 {[%clk 0:02:59]} 8. Bd2 {[%clk 0:02:40]}  Nc6 {[%clk 0:02:51]} 9. Ne4 {[%clk 0:02:24]}  Qd5 {[%clk 0:02:42]} 10. Nxf6+ {[%clk 0:02:18]}  gxf6 {[%clk 0:02:41]} 11. c3 {[%clk 0:02:07]}  O-O-O {[%clk 0:02:36]} 12. Qb3 {[%clk 0:02:04]}  Rg8 {[%clk 0:02:17]} 13. Qxd5 {[%clk 0:02:03]}  Rxd5 {[%clk 0:02:18]} 14. Nf4 {[%clk 0:02:01]}  Rf5 {[%clk 0:02:15]} 15. Rad1 {[%clk 0:01:54]}  e5 {[%clk 0:02:15]} 16. dxe5 {[%clk 0:01:51]}  fxe5 {[%clk 0:02:11]} 17. Nd5 {[%clk 0:01:48]}  Bd6 {[%clk 0:02:07]} 18. Be3 {[%clk 0:01:44]}  b6 {[%clk 0:02:01]} 19. g3 {[%clk 0:01:27]}  e4 {[%clk 0:01:44]} 20. Kh1 {[%clk 0:01:13]}  Ne5 {[%clk 0:01:40]} 21. Bf4 {[%clk 0:01:10]}  Nd3 {[%clk 0:01:36]} 22. Bxd6 {[%clk 0:01:06]}  Rxd5 {[%clk 0:01:36]} 23. Ba3 {[%clk 0:00:58]}  Nxf2+ {[%clk 0:01:33]} 24. Rxf2 {[%clk 0:00:56]}  Rxd1+ {[%clk 0:01:33]} 25. Kg2 {[%clk 0:00:54]}  e3 {[%clk 0:01:27]} 26. Re2 {[%clk 0:00:54]}  Re8 {[%clk 0:01:22]} 27. b3 {[%clk 0:00:44]}  c5 {[%clk 0:01:18]} 28. c4 {[%clk 0:00:42]}  a5 {[%clk 0:01:10]} 29. Kf3 {[%clk 0:00:40]}  Rf1+ {[%clk 0:01:09]} 30. Kg2 {[%clk 0:00:41]}  Rf6 {[%clk 0:00:57]} 31. Bc1 {[%clk 0:00:36]}  Rf2+ {[%clk 0:00:52]} 32. Rxf2 {[%clk 0:00:36]}  exf2 {[%clk 0:00:53]} 33. Kxf2 {[%clk 0:00:37]}  Kd7 {[%clk 0:00:52]} 34. Bf4 {[%clk 0:00:35]}  a4 {[%clk 0:00:53]} 35. Bc1 {[%clk 0:00:20]}  Kc6 {[%clk 0:00:49]} 36. Be3 {[%clk 0:00:18]}  Ra8 {[%clk 0:00:40]} 37. Ke2 {[%clk 0:00:15]}  axb3 {[%clk 0:00:40]} 38. axb3 {[%clk 0:00:16]}  Ra3 {[%clk 0:00:38]} 39. Bd2 {[%clk 0:00:13]}  Rxb3 {[%clk 0:00:37]} 40. Kd1 {[%clk 0:00:12]}  Rb1+ {[%clk 0:00:35]} 41. Kc2 {[%clk 0:00:11]}  Rg1 {[%clk 0:00:34]} 42. Kd3 {[%clk 0:00:10]}  Rh1 {[%clk 0:00:34]} 43. h4 {[%clk 0:00:09]}  b5 {[%clk 0:00:32]} 44. cxb5+ {[%clk 0:00:08]}  Kxb5 {[%clk 0:00:33]} 45. Kc3 {[%clk 0:00:08]}  Rf1 {[%clk 0:00:32]} 46. Bf4 {[%clk 0:00:06]}  Rf3+ {[%clk 0:00:32]} 47. Kc2 {[%clk 0:00:06]}  Kc4 {[%clk 0:00:32]} 48. Kd2 {[%clk 0:00:07]}  Rd3+ {[%clk 0:00:30]} 49. Kc2 {[%clk 0:00:07]}  Ra3 {[%clk 0:00:29]} 50. h5 {[%clk 0:00:06]}  Ra2+ {[%clk 0:00:29]} 51. Kb1 {[%clk 0:00:07]}  Rf2 {[%clk 0:00:29]} 52. h6 {[%clk 0:00:07]}  Kc3 {[%clk 0:00:28]} 53. Bg5 {[%clk 0:00:05]}  c4 {[%clk 0:00:27]} 54. Be3 {[%clk 0:00:04]}  Re2 {[%clk 0:00:26]} 55. Bg5 {[%clk 0:00:03]}  Kb3 {[%clk 0:00:26]} 56. Kc1 {[%clk 0:00:03]}  c3 {[%clk 0:00:27]} 57. Kd1 {[%clk 0:00:03]}  Re5 {[%clk 0:00:25]} 58. Bf6 {[%clk 0:00:03]}  Re6 {[%clk 0:00:25]} 59. Bg7 {[%clk 0:00:02]}  c2+ {[%clk 0:00:20]} 60. Kd2 {[%clk 0:00:02]}  Rd6+ {[%clk 0:00:21]} 0-1


[Site "https://www.chess.com"]

[Event "Titled Tuesday Blitz May 2 Late 2023"]
[White "Papayan, Oleg"]
[Black "Guerra Tulcan, Lenin"]
[WhiteFideId "4193911"]
[BlackFideId "3601382"]
[WhiteElo "2153"]
[BlackElo "2368"]
[Result "1/2-1/2"]
[Round "07"]
[TimeControl "180+2"]
[Date "2023.05.02"]
[WhiteClock "0:00:05"]
[BlackClock "0:00:13"]

1. e4 {[%clk 0:03:00]}  c5 {[%clk 0:03:00]} 2. d4 {[%clk 0:03:00]}  cxd4 {[%clk 0:02:59]} 3. Qxd4 {[%clk 0:03:01]}  Nc6 {[%clk 0:02:58]} 4. Qd3 {[%clk 0:03:02]}  Nf6 {[%clk 0:02:57]} 5. Nc3 {[%clk 0:03:03]}  d6 {[%clk 0:02:57]} 6. Nf3 {[%clk 0:03:03]}  g6 {[%clk 0:02:57]} 7. Be2 {[%clk 0:03:04]}  Bg7 {[%clk 0:02:58]} 8. O-O {[%clk 0:03:04]}  O-O {[%clk 0:02:58]} 9. Nd5 {[%clk 0:03:05]}  Nxd5 {[%clk 0:02:56]} 10. exd5 {[%clk 0:03:06]}  Bf5 {[%clk 0:02:56]} 11. Qd1 {[%clk 0:03:06]}  Nb4 {[%clk 0:02:45]} 12. c3 {[%clk 0:03:06]}  Na6 {[%clk 0:02:45]} 13. Nd4 {[%clk 0:02:40]}  Bd7 {[%clk 0:02:44]} 14. Re1 {[%clk 0:02:32]}  Nc5 {[%clk 0:02:41]} 15. Bg5 {[%clk 0:02:26]}  h6 {[%clk 0:02:37]} 16. Bh4 {[%clk 0:02:25]}  Re8 {[%clk 0:02:23]} 17. a4 {[%clk 0:02:10]}  Ne4 {[%clk 0:02:13]} 18. Bb5 {[%clk 0:01:41]}  Nf6 {[%clk 0:02:09]} 19. Bxd7 {[%clk 0:01:10]}  Qxd7 {[%clk 0:02:08]} 20. c4 {[%clk 0:01:07]}  Rac8 {[%clk 0:02:04]} 21. b3 {[%clk 0:01:05]}  Qg4 {[%clk 0:01:37]} 22. Qxg4 {[%clk 0:00:40]}  Nxg4 {[%clk 0:01:38]} 23. Rad1 {[%clk 0:00:40]}  Nf6 {[%clk 0:00:58]} 24. Re2 {[%clk 0:00:34]}  Kf8 {[%clk 0:00:52]} 25. f3 {[%clk 0:00:29]}  Nd7 {[%clk 0:00:51]} 26. Bf2 {[%clk 0:00:26]}  Nc5 {[%clk 0:00:47]} 27. Re3 {[%clk 0:00:20]}  a6 {[%clk 0:00:44]} 28. a5 {[%clk 0:00:18]}  Rb8 {[%clk 0:00:39]} 29. b4 {[%clk 0:00:14]}  Nd7 {[%clk 0:00:38]} 30. Kf1 {[%clk 0:00:12]}  Rec8 {[%clk 0:00:37]} 31. Rc3 {[%clk 0:00:09]}  Rc7 {[%clk 0:00:32]} 32. Rc2 {[%clk 0:00:08]}  Rbc8 {[%clk 0:00:32]} 33. Rdc1 {[%clk 0:00:08]}  Ne5 {[%clk 0:00:31]} 34. c5 {[%clk 0:00:08]}  Nd3 {[%clk 0:00:31]} 35. cxd6 {[%clk 0:00:06]}  Rxc2 {[%clk 0:00:24]} 36. Rxc2 {[%clk 0:00:06]}  Rd8 {[%clk 0:00:17]} 37. dxe7+ {[%clk 0:00:06]}  Kxe7 {[%clk 0:00:17]} 38. Rd2 {[%clk 0:00:04]}  Nxf2 {[%clk 0:00:17]} 39. Kxf2 {[%clk 0:00:05]}  Kd6 {[%clk 0:00:15]} 40. Nb3 {[%clk 0:00:04]}  Rc8 {[%clk 0:00:14]} 41. Nc5 {[%clk 0:00:04]}  Bc3 {[%clk 0:00:14]} 42. Ne4+ {[%clk 0:00:04]}  Kd7 {[%clk 0:00:13]} 43. Nxc3 {[%clk 0:00:02]}  Rxc3 {[%clk 0:00:14]} 44. Rd4 {[%clk 0:00:02]}  Kd6 {[%clk 0:00:14]} 45. Kg3 {[%clk 0:00:02]}  f5 {[%clk 0:00:14]} 46. h4 {[%clk 0:00:02]}  g5 {[%clk 0:00:13]} 47. hxg5 {[%clk 0:00:02]}  hxg5 {[%clk 0:00:14]} 48. Kf2 {[%clk 0:00:02]}  Rc2+ {[%clk 0:00:14]} 49. Kg3 {[%clk 0:00:03]}  f4+ {[%clk 0:00:14]} 50. Kh3 {[%clk 0:00:03]}  Rb2 {[%clk 0:00:13]} 51. Kh2 {[%clk 0:00:02]}  g4 {[%clk 0:00:11]} 52. fxg4 {[%clk 0:00:01]}  f3 {[%clk 0:00:12]} 53. Kg3 {[%clk 0:00:01]}  fxg2 {[%clk 0:00:11]} 54. Kh2 {[%clk 0:00:01]}  Re2 {[%clk 0:00:10]} 55. g5 {[%clk 0:00:01]}  Re5 {[%clk 0:00:10]} 56. Kxg2 {[%clk 0:00:01]}  Rxg5+ {[%clk 0:00:10]} 57. Kf3 {[%clk 0:00:02]}  Rxd5 {[%clk 0:00:11]} 58. Ke4 {[%clk 0:00:02]}  Rxd4+ {[%clk 0:00:10]} 59. Kxd4 {[%clk 0:00:03]}  Kc6 {[%clk 0:00:10]} 60. Kc4 {[%clk 0:00:03]}  Kd6 {[%clk 0:00:11]} 61. Kd4 {[%clk 0:00:04]}  Kc6 {[%clk 0:00:11]} 62. Kc4 {[%clk 0:00:05]}  b5+ {[%clk 0:00:11]} 63. axb6 {[%clk 0:00:04]}  Kxb6 {[%clk 0:00:11]} 64. Kc3 {[%clk 0:00:04]}  Kb5 {[%clk 0:00:12]} 65. Kb3 {[%clk 0:00:05]}  a5 {[%clk 0:00:13]} 66. bxa5 {[%clk 0:00:05]}  Kxa5 {[%clk 0:00:13]} 1/2-1/2


[Site "https://www.chess.com"]

[Event "Titled Tuesday Blitz May 2 Late 2023"]
[White "Toktomushev, Teimur"]
[Black "Antonica, Dragos-Andrei"]
[WhiteFideId "14176726"]
[BlackFideId "1246372"]
[WhiteElo "2116"]
[BlackElo "2285"]
[Result "0-1"]
[Round "07"]
[TimeControl "180+2"]
[Date "2023.05.02"]
[WhiteClock "0:00:05"]
[BlackClock "0:01:00"]

1. d4 {[%clk 0:03:00]}  Nf6 {[%clk 0:02:56]} 2. c4 {[%clk 0:02:52]}  e6 {[%clk 0:02:56]} 3. Nf3 {[%clk 0:02:41]}  b6 {[%clk 0:02:55]} 4. g3 {[%clk 0:02:39]}  Ba6 {[%clk 0:02:55]} 5. b3 {[%clk 0:02:39]}  d5 {[%clk 0:02:53]} 6. Bg2 {[%clk 0:02:33]}  dxc4 {[%clk 0:02:53]} 7. Ne5 {[%clk 0:02:33]}  Bb4+ {[%clk 0:02:46]} 8. Bd2 {[%clk 0:02:33]}  cxb3 {[%clk 0:02:16]} 9. axb3 {[%clk 0:02:29]}  Qxd4 {[%clk 0:02:12]} 10. Bxb4 {[%clk 0:01:02]}  Qxb4+ {[%clk 0:02:01]} 11. Kf1 {[%clk 0:01:01]}  Nd5 {[%clk 0:01:31]} 12. Bxd5 {[%clk 0:01:01]}  exd5 {[%clk 0:01:32]} 13. Qxd5 {[%clk 0:01:01]}  O-O {[%clk 0:01:11]} 14. Qxa8 {[%clk 0:01:01]}  Qd4 {[%clk 0:01:11]} 15. Rxa6 {[%clk 0:00:29]}  Nxa6 {[%clk 0:01:09]} 16. Qxa7 {[%clk 0:00:29]}  Qxe5 {[%clk 0:01:00]} 17. Nd2 {[%clk 0:00:05]}  Qd5 {[%clk 0:01:00]} 18. Nf3 {[%clk 0:00:05]}  Ra8 {[%clk 0:01:00]} 0-1


[Site "https://www.chess.com"]

[Event "Titled Tuesday Blitz May 2 Late 2023"]
[White "Adla, Diego"]
[Black "Colpe, Malte"]
[WhiteFideId "100072"]
[BlackFideId "24623075"]
[WhiteElo "2377"]
[BlackElo "2289"]
[Result "1-0"]
[Round "07"]
[TimeControl "180+2"]
[Date "2023.05.02"]
[WhiteClock "0:00:11"]
[BlackClock "0:00:04"]

1. c4 {[%clk 0:02:55]}  e5 {[%clk 0:02:56]} 2. Nc3 {[%clk 0:02:42]}  Bb4 {[%clk 0:02:53]} 3. Nf3 {[%clk 0:02:39]}  Bxc3 {[%clk 0:02:51]} 4. dxc3 {[%clk 0:02:37]}  d6 {[%clk 0:02:47]} 5. e4 {[%clk 0:02:31]}  Nf6 {[%clk 0:02:46]} 6. Bd3 {[%clk 0:02:29]}  Nbd7 {[%clk 0:02:45]} 7. b4 {[%clk 0:02:24]}  O-O {[%clk 0:02:35]} 8. O-O {[%clk 0:02:24]}  Re8 {[%clk 0:02:34]} 9. Ne1 {[%clk 0:02:20]}  Nf8 {[%clk 0:02:32]} 10. Nc2 {[%clk 0:02:16]}  Ng6 {[%clk 0:02:28]} 11. a4 {[%clk 0:02:10]}  a5 {[%clk 0:02:24]} 12. Ne3 {[%clk 0:02:03]}  c6 {[%clk 0:02:10]} 13. Bc2 {[%clk 0:01:48]}  Qc7 {[%clk 0:02:02]} 14. h3 {[%clk 0:01:43]}  Be6 {[%clk 0:01:59]} 15. Rb1 {[%clk 0:01:40]}  Nf4 {[%clk 0:01:52]} 16. Re1 {[%clk 0:01:36]}  Rad8 {[%clk 0:01:45]} 17. Qf3 {[%clk 0:01:30]}  h6 {[%clk 0:01:41]} 18. Qg3 {[%clk 0:01:21]}  N6h5 {[%clk 0:01:30]} 19. Qf3 {[%clk 0:01:18]}  Nf6 {[%clk 0:01:27]} 20. Bd2 {[%clk 0:01:12]}  Nh7 {[%clk 0:01:19]} 21. h4 {[%clk 0:01:08]}  Qe7 {[%clk 0:01:12]} 22. g3 {[%clk 0:01:06]}  Ng6 {[%clk 0:01:08]} 23. Nf5 {[%clk 0:01:06]}  Qc7 {[%clk 0:01:05]} 24. Be3 {[%clk 0:01:00]}  Bxc4 {[%clk 0:00:57]} 25. bxa5 {[%clk 0:00:54]}  c5 {[%clk 0:00:56]} 26. h5 {[%clk 0:00:50]}  Ne7 {[%clk 0:00:42]} 27. Qg4 {[%clk 0:00:49]}  Nxf5 {[%clk 0:00:39]} 28. exf5 {[%clk 0:00:49]}  d5 {[%clk 0:00:18]} 29. Bxh6 {[%clk 0:00:48]}  f6 {[%clk 0:00:19]} 30. Rb6 {[%clk 0:00:35]}  Kh8 {[%clk 0:00:16]} 31. Bc1 {[%clk 0:00:34]}  d4 {[%clk 0:00:13]} 32. cxd4 {[%clk 0:00:31]}  cxd4 {[%clk 0:00:14]} 33. Ba3 {[%clk 0:00:26]}  Bd5 {[%clk 0:00:14]} 34. Bb3 {[%clk 0:00:24]}  Qc3 {[%clk 0:00:11]} 35. Rc1 {[%clk 0:00:21]}  Qd2 {[%clk 0:00:07]} 36. Bxd5 {[%clk 0:00:17]}  Rxd5 {[%clk 0:00:08]} 37. Rc7 {[%clk 0:00:17]}  Ng5 {[%clk 0:00:05]} 38. Bc1 {[%clk 0:00:15]}  Qe1+ {[%clk 0:00:04]} 39. Kg2 {[%clk 0:00:15]}  e4 {[%clk 0:00:02]} 40. Bxg5 {[%clk 0:00:14]}  fxg5 {[%clk 0:00:03]} 41. Qxg5 {[%clk 0:00:12]}  Rg8 {[%clk 0:00:03]} 42. Rh6+ {[%clk 0:00:11]}  gxh6 {[%clk 0:00:04]} 43. Qxh6# {[%clk 0:00:11]} 1-0


[Site "https://www.chess.com"]

[Event "Titled Tuesday Blitz May 2 Late 2023"]
[White "Sai Han Thiha"]
[Black "Hnydiuk, Aleksander"]
[WhiteFideId "13012290"]
[BlackFideId "1109057"]
[WhiteElo "1954"]
[BlackElo "2374"]
[Result "0-1"]
[Round "07"]
[TimeControl "180+2"]
[Date "2023.05.02"]
[WhiteClock "0:02:08"]
[BlackClock "0:01:27"]

1. d4 {[%clk 0:03:00]}  Nf6 {[%clk 0:03:00]} 2. c4 {[%clk 0:03:01]}  c5 {[%clk 0:02:59]} 3. d5 {[%clk 0:03:01]}  b5 {[%clk 0:02:59]} 4. cxb5 {[%clk 0:03:02]}  a6 {[%clk 0:02:59]} 5. bxa6 {[%clk 0:03:03]}  g6 {[%clk 0:02:59]} 6. Nc3 {[%clk 0:03:03]}  Bg7 {[%clk 0:03:00]} 7. e4 {[%clk 0:03:03]}  O-O {[%clk 0:03:00]} 8. a7 {[%clk 0:03:01]}  Rxa7 {[%clk 0:02:59]} 9. Bb5 {[%clk 0:03:01]}  Nxe4 {[%clk 0:02:56]} 10. Nxe4 {[%clk 0:02:54]}  Qa5+ {[%clk 0:02:55]} 11. Nc3 {[%clk 0:02:55]}  Bxc3+ {[%clk 0:02:55]} 12. bxc3 {[%clk 0:02:56]}  Qxb5 {[%clk 0:02:56]} 13. Bh6 {[%clk 0:02:52]}  Re8 {[%clk 0:02:55]} 14. Ne2 {[%clk 0:02:49]}  Ba6 {[%clk 0:02:53]} 15. a4 {[%clk 0:02:34]}  Qc4 {[%clk 0:02:51]} 16. h4 {[%clk 0:02:26]}  d6 {[%clk 0:02:45]} 17. h5 {[%clk 0:02:26]}  e6 {[%clk 0:02:44]} 18. dxe6 {[%clk 0:02:24]}  Rxe6 {[%clk 0:02:43]} 19. Be3 {[%clk 0:02:25]}  Rae7 {[%clk 0:02:23]} 20. Qd2 {[%clk 0:02:22]}  Nc6 {[%clk 0:02:17]} 21. hxg6 {[%clk 0:02:20]}  fxg6 {[%clk 0:02:16]} 22. Nf4 {[%clk 0:02:21]}  Qxf4 {[%clk 0:02:13]} 23. O-O-O {[%clk 0:02:21]}  Qxa4 {[%clk 0:02:07]} 24. Qd5 {[%clk 0:02:17]}  Bc4 {[%clk 0:02:00]} 25. Qf3 {[%clk 0:02:16]}  Ne5 {[%clk 0:01:52]} 26. Qh3 {[%clk 0:02:12]}  Qa1+ {[%clk 0:01:39]} 27. Kc2 {[%clk 0:02:09]}  Qa2+ {[%clk 0:01:35]} 28. Kc1 {[%clk 0:02:08]}  Bb3 {[%clk 0:01:27]} 0-1


[Site "https://www.chess.com"]